Cogmind - Beta 13 @@@ ROGUE MODE // 2024.05.01 @ 02:29:16 Player: Millea Result: Escaped! Performance ------------- Evolutions (9) 4500 Regions Visited (20) 4000 Robots Destroyed (84) 420 Value Destroyed (3125) 3125 Prototype IDs (46) 920 Alien Tech Used (1) 200 Bonus (3748) 3748 TOTAL SCORE: 16913 Bonus ------- Follower Combat Kills 87 Entered DSFs 500 Aligned with FarCom 300 Win 3000 Friendly Fire -139 Cogmind --------- Core Integrity 413/1600 Matter 300/300 Energy 99/100 System Corruption 10% Temperature Cool (0) Movement Core (50) Location To Epsilon Eridani Parts ------- > --- POWER (2) -------- (None) > --- PROPULSION (10) -- (None) > --- UTILITY (11) ----- Advanced Coolant Injector Modified TNC Improved Melee Analysis Suite > --- WEAPON (2) ------- (None) > --- INVENTORY (5) ---- Advanced Heavy Siege Treads Heavy Disruptor Cannon Nova Cannon Peak State ------------ > --- POWER ------------ Micro Antimatter Reactor Quantum Reactor > --- PROPULSION ------- Antigrav Array Q-thruster Impulse Thruster Array Impulse Thruster Array Impulse Thruster Array Improved Q-thruster > --- UTILITY ---------- Advanced Power Amplifier Advanced Power Amplifier Advanced Power Amplifier Advanced Coolant Injector Medium Storage Unit Small Battery Modified TNC Improved Melee Analysis Suite Improved Transmission Jammer Point Defense Array Hacking Suite > --- WEAPON ----------- Heavy Disruptor Cannon > --- INVENTORY -------- Advanced Heavy Siege Treads Transdimensional Reconstructor Enhanced Quantum Rifle Enhanced Quantum Rifle Heavy Disruptor Cannon Nova Cannon [Rating: 176] Favorites ----------- Power Ion Engine Engine Ion Engine Power Core Micro Nuclear Core Reactor Fusion Reactor Propulsion Light Treads Treads Light Treads Leg Aluminum Leg Wheel Compact Wheel Hover Unit Cooled Gravmag System Flight Unit Improved VTOL Module Utility Improved System Shield Device Improved Transmission Jammer Storage Large Storage Unit Processor Modified TNC Hackware Improved System Shield Protection Improved Propulsion Shielding Weapon Advanced Beam Rifle Energy Gun Advanced Beam Rifle Energy Cannon Nova Cannon Ballistic Gun Heavy Assault Rifle Ballistic Cannon Light Cannon Launcher Rocket Launcher Slashing Weapon Centrium Greatsword Piercing Weapon Spear Build | -11 -10 -10 -9 -9 -9 -8 -8 -7 -6 -5 -5 -4 -4 -4 -4 -3 -3 -2 -1 -1 ------- Run | Yrd Mat Min Mat Min Exi Min Mat Fac Fac Fac DSF Fac Upp Upp Zhi Pro Res Res Acc Com Slots Evolved 18 | . . . 2 . . . 2 2 2 2 . 2 . . . . 2 2 2 . Power 1 | . . . . . . . . . . . . . . . . . 1 . . . Propulsion 8 | . . . . . . . 2 1 1 . . . . . . . 1 1 2 . Utility 9 | . . . 2 . . . . 1 1 2 . 2 . . . . . 1 . . Weapon . | . . . . . . . . . . . . . . . . . . . . . Parts Attached 164 | 5 3 2 8 9 . 6 24 15 12 1 2 2 9 1 9 3 11 8 7 27 Power 17 | . 1 . . . . 1 2 . 1 . . . 2 . 1 . 1 2 2 4 Engine 5 | . 1 . . . . 1 1 . 1 . . . 1 . . . . . . . Core 2 | . . . . . . . 1 . . . . . 1 . . . . . . . Reactor 10 | . . . . . . . . . . . . . . . 1 . 1 2 2 4 Propulsion 50 | 3 . . . 1 . 2 7 8 6 . . . 1 . 3 . 5 4 1 9 Treads 10 | 2 . . . 1 . 1 5 . . . . . . . . . . . . 1 Leg 1 | 1 . . . . . . . . . . . . . . . . . . . . Wheel 3 | . . . . . . 1 2 . . . . . . . . . . . . . Hover 9 | . . . . . . . . . . . . . . . 3 . 5 . . 1 Flight 27 | . . . . . . . . 8 6 . . . 1 . . . . 4 1 7 Utility 65 | 1 1 1 6 3 . 1 6 6 4 1 2 1 4 1 5 3 5 2 3 9 Device 23 | . . . 1 . . . 3 . . . . . . 1 2 3 4 . 2 7 Storage 5 | 1 1 . . . . . . . . . . . 1 . . . 1 . . 1 Processor 6 | . . . 1 . . . . 2 1 . . . 1 . . . . . 1 . Hackware 8 | . . . . . . . . 1 1 . 2 1 . . 1 . . 1 . 1 Protection 23 | . . 1 4 3 . 1 3 3 2 1 . . 2 . 2 . . 1 . . Artifact . | . . . . . . . . . . . . . . . . . . . . . Weapon 32 | 1 1 1 2 5 . 2 9 1 1 . . 1 2 . . . . . 1 5 Energy Gun 10 | . . 1 . 1 . . 7 . . . . . . . . . . . . 1 Energy Cannon 7 | . . . 1 1 . . . . . . . . . . . . . . 1 4 Ballistic Gun 6 | 1 1 . 1 2 . 1 . . . . . . . . . . . . . . Ballistic Cannon 1 | . . . . . . . 1 . . . . . . . . . . . . . Launcher 4 | . . . . 1 . 1 1 . . . . . 1 . . . . . . . Special Weapon . | . . . . . . . . . . . . . . . . . . . . . Impact Weapon . | . . . . . . . . . . . . . . . . . . . . . Slashing Weapon 3 | . . . . . . . . . 1 . . 1 1 . . . . . . . Piercing Weapon 1 | . . . . . . . . 1 . . . . . . . . . . . . Special Melee Weapon . | . . . . . . . . . . . . . . . . . . . . . Unidentified Prototypes 13 | . . . . . . . 2 1 3 . . 2 . . 4 . . . . 1 Corrupted Parts 1 | . . . . . . . 1 . . . . . . . . . . . . . System Corruption 1 | . . . . . . . 1 . . . . . . . . . . . . . Parts Lost 61 | . . . . 6 . 3 12 . . . . . 7 . . 1 1 5 . 26 Power 7 | . . . . . . . 2 . . . . . 2 . . . 1 1 . 1 Propulsion 18 | . . . . 1 . 2 4 . . . . . 2 . . . . . . 9 Utility 26 | . . . . 2 . 1 1 . . . . . 3 . . 1 . 3 . 15 Weapon 10 | . . . . 3 . . 5 . . . . . . . . . . 1 . 1 Highest Loss Streak 11 | . . . . 6 . 3 7 . . . . . 5 . . 1 1 5 . 11 To Critical Strikes . | . . . . . . . . . . . . . . . . . . . . . Average Slot Usage (%) 88 | . 80 99 95 100 100 99 88 91 96 94 100 89 76 87 90 93 87 77 72 74 Engine 4 | . 10 14 11 11 11 11 7 . 2 5 5 5 . . . . . . . . Reactor 2 | . . . . . . . . . . . . . . . 3 5 6 7 8 7 Treads 11 | . 28 28 22 22 22 10 22 21 . . . . . . . . . . . . Wheel 1 | . . . . . . 10 3 . . . . . . . . . . . . . Hover 3 | . . . . . . . . . . . . . . . 8 15 25 4 . . Flight 9 | . . . . . . . . 9 38 35 35 31 22 26 19 15 2 13 20 20 Device 7 | . . . 5 11 11 . 7 11 . . . . . 3 1 9 9 7 10 17 Storage 7 | . 14 18 11 11 11 11 9 5 . . . . . . . . 2 4 4 6 Processor 7 | . . . 3 11 11 11 9 13 10 11 11 5 7 10 10 5 4 4 7 8 Hackware 8 | . . . . . . . . 1 10 11 17 22 26 26 29 26 23 24 20 8 Protection 8 | . . 9 19 11 11 22 10 4 15 17 17 15 13 10 8 10 4 3 . . Energy Gun 6 | . . 9 7 8 11 11 14 14 6 5 5 3 . . . . . . . 1 Ballistic Gun 4 | . 25 18 11 11 11 10 1 . . . . . . . . . . . . . Slashing Weapon 1 | . . . . . . . . . 4 5 5 5 4 5 5 5 4 3 . . Naked Turns . | . . . . . . . . . . . . . . . . . . . . . Heaviest Build 78 | 6 32 32 42 36 35 37 37 33 23 19 19 19 27 15 20 29 45 56 65 78 Greatest Support 87 | 40 40 40 40 40 40 16 83 83 31 31 33 31 31 24 33 33 87 87 80 80 Greatest Overweight (x) 3 | . . . 1 . . 2 3 2 . . . . . . 1 . . 3 . 1 Average Overweight (x) . | . . . . . . 2 . . . . . . . . . . . . . . Largest Inventory Capacity 15 | 8 15 15 15 15 15 15 15 15 5 5 5 5 15 5 5 5 10 10 10 10 Average Capacity 11 | 7 8 15 15 15 15 15 15 12 5 5 5 5 5 5 5 5 8 10 10 9 Most Carried 15 | 8 8 15 15 15 11 13 15 15 5 4 5 5 5 5 5 5 7 10 10 10 Average Carried 9 | 5 7 13 14 10 10 8 13 12 4 4 4 5 4 5 4 5 5 9 9 8 Final Capacity 15 | 8 15 15 15 15 15 15 15 5 5 5 5 5 5 5 5 5 10 10 10 10 Final Carried 15 | 8 8 15 15 10 11 13 15 5 5 4 5 5 4 5 5 5 7 10 10 6 Class Distribution -------------------- 41% | Mutant 20% | Wizard-Mutant 11% | Scavenger-Mutant 9% | Sprinter 7% | Hacker-Sprinter 4% | Hacker-Scout 3% | Wizard-Sprinter Dominant Class ---------------- Mutant | -10/Materials Mutant | -10/Mines Mutant | -9/Materials Scavenger-Mutant | -9/Mines Scavenger-Mutant | -9/Exiles Mutant | -8/Mines Mutant | -8/Materials Mutant | -7/Factory Hacker-Scout | -6/Factory Hacker-Scout | -5/Factory Hacker-Scout | -5/DSF Hacker-Sprinter | -4/Factory Wizard-Sprinter | -4/Upper Caves Wizard-Sprinter | -4/Upper Caves Wizard-Mutant | -4/Zhirov Wizard-Mutant | -3/Proximity Caves Wizard-Mutant | -3/Research Wizard-Mutant | -2/Research Hacker-Sprinter | -1/Access Sprinter | -1/Command Resources | -11 -10 -10 -9 -9 -9 -8 -8 -7 -6 -5 -5 -4 -4 -4 -4 -3 -3 -2 -1 -1 ----------- Run | Yrd Mat Min Mat Min Exi Min Mat Fac Fac Fac DSF Fac Upp Upp Zhi Pro Res Res Acc Com Matter Collected 2021 | 223 54 50 103 193 . 50 310 130 110 . . 80 75 25 . 111 92 77 72 266 Remotely . | . . . . . . . . . . . . . . . . . . . . . Salvage Created 3948 | . 54 . 237 156 . 90 1026 299 274 . . 108 390 . . . 178 125 85 926 Parts 170 | . 8 . 17 7 . 3 45 8 8 . . 2 19 . . . 7 6 . 40 Haulers Intercepted 6 | . . . 1 . . . 2 . 2 . . 1 . . . . . . . . Recyclers Shooed 3 | . . . . 1 . . 1 . 1 . . . . . . . . . . . Parts Field Recycled . | . . . . . . . . . . . . . . . . . . . . . Retrieved Matter . | . . . . . . . . . . . . . . . . . . . . . Parts Self-Destructed 14 | . . . . . . . . . . . . . 14 . . . . . . . Prevented . | . . . . . . . . . . . . . . . . . . . . . Kills | -11 -10 -10 -9 -9 -9 -8 -8 -7 -6 -5 -5 -4 -4 -4 -4 -3 -3 -2 -1 -1 ------- Run | Yrd Mat Min Mat Min Exi Min Mat Fac Fac Fac DSF Fac Upp Upp Zhi Pro Res Res Acc Com Combat Hostiles Destroyed 65 | . 3 . 4 13 . 2 17 5 1 . . . 10 . . . . 1 . 9 Melee 9 | . . . . . . . . . 1 . . . 7 . . . . 1 . . Guns 28 | . 3 . 2 2 . 1 13 5 . . . . . . . . . . . 2 Cannons 7 | . . . 2 . . . 2 . . . . . . . . . . . . 3 AOE 16 | . . . . 11 . 1 1 . . . . . 3 . . . . . . . Classes Destroyed 18 | . 1 . 5 4 . . 2 . . . . . . . . . . . . 6 Worker 6 | . . . . 1 . . 2 . . . . . . . . . 1 . . 2 Builder 2 | . . . . 1 . . . . . . . . . . . . . 1 . . Hauler 6 | . . . 1 . . . 2 . 2 . . 1 . . . . . . . . Recycler 4 | . . . . . . . 2 1 . . . . . . . . 1 . . . Mechanic 1 | . . . . . . . . . . . . . . . . . . . . 1 Operator 2 | . . . . . . . . . . . . . . . . . . . . 2 Watcher 9 | . . . 1 . . . 2 . 1 . . . . . . . 1 1 2 1 Swarmer 16 | . 3 . 1 . . . 4 2 . . . . 6 . . . . . . . Grunt 21 | . . . 1 . . 2 10 3 1 . . . 4 . . . . . . . Brawler 1 | . . . 1 . . . . . . . . . . . . . . . . . Duelist 1 | . . . . . . . 1 . . . . . . . . . . . . . Sentry 4 | . . . 1 . . . 2 . . . . . . . . . . 1 . . Demolisher 2 | . . . . 2 . . . . . . . . . . . . . . . . Hunter 1 | . . . . . . . . . . . . . . . . . . . . 1 Programmer 5 | . . . . . . . . . . . . . . . . . . . . 5 Striker 1 | . . . . . . . . . . . . . . . . . . . . 1 Executioner 2 | . . . . . . . . . . . . . . . . . . . . 2 Assembled 11 | . . . . 11 . . . . . . . . . . . . . . . . Best Kill Streak 14 | . 3 . 3 14 . 2 4 3 2 . . 1 5 . . . 1 1 1 4 Combat Bots Only 12 | . 3 . 3 12 . 2 4 3 1 . . . 5 . . . . 1 . 2 Max Kills in Single Turn 4 | . 1 . 1 4 . 1 2 1 1 . . 1 2 . . . 1 1 1 2 Gunslinging . | . . . . . . . . . . . . . . . . . . . . . Exploded 4 | . . . . 4 . 1 1 . . . . . 2 . . . . . . . Melee 1 | . . . . . . . . . 1 . . . 1 . . . . 1 . . Uniques/NPCs Destroyed . | . . . . . . . . . . . . . . . . . . . . . Combat | -11 -10 -10 -9 -9 -9 -8 -8 -7 -6 -5 -5 -4 -4 -4 -4 -3 -3 -2 -1 -1 -------- Run | Yrd Mat Min Mat Min Exi Min Mat Fac Fac Fac DSF Fac Upp Upp Zhi Pro Res Res Acc Com Hostile Shots Fired 700 | . 16 8 16 26 . 15 94 21 43 . 2 13 72 . . 27 6 59 . 282 Missed 256 | . 7 1 2 2 . 6 22 5 21 . . 6 23 . . 15 1 24 . 121 Damage Taken 8806 | . 67 101 194 1101 . 236 1008 193 231 . 85 123 896 . . 278 228 836 . 3229 Core 2488 | . 15 45 24 280 . 72 103 39 95 . . 24 186 . . 111 27 280 . 1187 Absorbed by Shields 762 | . . . . . . . 115 51 . . . . . . . . . . . 596 Redirected to Shielding 824 | . . . . 7 . 6 15 9 39 . 56 64 358 . . 52 92 126 . . Regen/Repaired (Parts) 304 | . . . . . . . 181 . 25 . . . . . . . 98 . . . Core Remaining (%) 74 | 100 . 76 . . . 6 81 94 88 . 100 . . . . 72 97 80 . 25 Volleys Fired 236 | . 18 5 9 18 . 7 68 15 . . . . 2 . . . . . 11 83 Largest 2 | . 1 2 2 2 . 2 2 2 . . . . 1 . . . . . 1 2 Hottest 178 | . 20 40 91 91 . 79 122 122 . . . . 30 . . . . . 110 178 Shots Fired 371 | . 18 10 18 31 . 12 123 30 . . . . 2 . . . . . 11 116 Gun 270 | . 18 10 12 25 . 10 112 30 . . . . . . . . . . . 53 Cannon 88 | . . . 6 1 . . 7 . . . . . . . . . . . 11 63 Launcher 13 | . . . . 5 . 2 4 . . . . . 2 . . . . . . . Special . | . . . . . . . . . . . . . . . . . . . . . Kinetic 73 | . 18 10 9 22 . 5 9 . . . . . . . . . . . . . Thermal 245 | . . . 9 4 . 5 100 30 . . . . . . . . . . . 97 Explosive 13 | . . . . 5 . 2 4 . . . . . 2 . . . . . . . Electromagnetic 40 | . . . . . . . 10 . . . . . . . . . . . 11 19 Robot Hit Streak 21 | . 3 8 21 9 . 10 11 9 . . . . . . . . . . 10 16 Robot Miss Streak 6 | . 4 2 1 6 . 1 3 2 . . . . . . . . . . 4 5 Penetration Max . | . . . . . . . . . . . . . . . . . . . . . Secondary Targets 1 | . . . . . . . 1 . . . . . . . . . . . . . Max Gunslinging Chain 1 | . . . . . . . 1 . . . . . . . . . . . . . Shots Hit Robots 285 | . 8 8 14 19 . 7 77 22 13 . . 9 16 . . . 5 8 4 75 Core Hits 144 | . 5 2 10 28 . 5 39 10 8 . . 1 9 . . . 2 4 1 20 Critical Kills 4 | . . . . . . . . . . . . . . . . . . . . 4 Critical Parts Destroyed . | . . . . . . . . . . . . . . . . . . . . . Critical Strikes 25 | . . . . . . . 11 2 1 . . 2 3 . . . . 2 . 4 Burn 12 | . . . . . . . 10 2 . . . . . . . . . . . . Meltdown 4 | . . . . . . . . . . . . . . . . . . . . 4 Blast 1 | . . . . . . . 1 . . . . . . . . . . . . . Sever 8 | . . . . . . . . . 1 . . 2 3 . . . . 2 . . Melee Attacks 106 | . . . . . . . . 5 26 . . 13 21 . . 12 11 18 . . Impact . | . . . . . . . . . . . . . . . . . . . . . Slashing 93 | . . . . . . . . . 18 . . 13 21 . . 12 11 18 . . Piercing 13 | . . . . . . . . 5 8 . . . . . . . . . . . Sneak Attacks 8 | . . . . . . . . . 3 . . 1 1 . . . 2 1 . . Combat Hostiles 1 | . . . . . . . . . . . . . 1 . . . . . . . Follow-up Attacks . | . . . . . . . . . . . . . . . . . . . . . Damage Inflicted 10796 | . 57 64 254 1142 . 165 1561 440 609 . . 491 1380 . . . 529 655 236 3213 Guns 3901 | . 57 64 129 322 . 96 1342 440 . . . . . . . . . . . 1451 Cannons 2249 | . . . 105 21 . . 125 . . . . . . . . . . . 236 1762 Explosions 1166 | . . . . 799 . 69 94 . . . . . 204 . . . . . . . Melee 3456 | . . . . . . . . . 609 . . 491 1176 . . . 529 651 . . Ramming 24 | . . . 20 . . . . . . . . . . . . . . 4 . . Kinetic 698 | . 57 64 85 292 . 40 160 . . . . . . . . . . . . . Thermal 4619 | . . . 149 51 . 56 1244 440 . . . . . . . . . . . 2679 Explosive 1166 | . . . . 799 . 69 94 . . . . . 204 . . . . . . . Electromagnetic 833 | . . . . . . . 63 . . . . . . . . . . . 236 534 Impact . | . . . . . . . . . . . . . . . . . . . . . Slashing 3218 | . . . . . . . . . 371 . . 491 1176 . . . 529 651 . . Piercing 238 | . . . . . . . . . 238 . . . . . . . . . . . Highest Corruption 10 | . . . . . . . 3 . . . . . . . . . . . . 10 Average Corruption 3 | . . . . . . . 1 . . . . . . . . . . . . 4 Corruption Purged 9 | . . . . . . . 3 . . . . . . . . . . . . 6 Corruption Blocked . | . . . . . . . . . . . . . . . . . . . . . Effects 30 | . . . . . . . 8 . . . . . . . . . . . . 22 Message Errors 7 | . . . . . . . 1 . . . . . . . . . . . . 6 Matter Fused 8 | . . . . . . . 2 . . . . . . . . . . . . 6 Heat Flow Errors 8 | . . . . . . . 3 . . . . . . . . . . . . 5 Energy Discharges 1 | . . . . . . . . . . . . . . . . . . . . 1 Data Loss (minor) 4 | . . . . . . . . . . . . . . . . . . . . 4 Misfires 2 | . . . . . . . 2 . . . . . . . . . . . . . Overload Shots . | . . . . . . . . . . . . . . . . . . . . . Overflow Damage 413 | . . . 3 4 . . . . . . . 35 118 . . . 161 . 10 82 Projectiles 95 | . . . 3 . . . . . . . . . . . . . . . 10 82 Explosions 4 | . . . . 4 . . . . . . . . . . . . . . . . Melee 314 | . . . . . . . . . . . . 35 118 . . . 161 . . . Knockbacks 1 | . . . . . . . 1 . . . . . . . . . . . . . Impact . | . . . . . . . . . . . . . . . . . . . . . Kinetic 1 | . . . . . . . 1 . . . . . . . . . . . . . Secondary . | . . . . . . . . . . . . . . . . . . . . . Self-Inflicted Damage 72 | . . . . 70 . . . . . . . . . . . . . 2 . . Shots 2 | . . . . 2 . . . . . . . . . . . . . . . . Rammed 3 | . . . 2 . . . . . . . . . . . . . . 1 . . Targets Rammed 3 | . . . 2 . . . . . . . . . . . . . . 1 . . Kicked . | . . . . . . . . . . . . . . . . . . . . . Crushed . | . . . . . . . . . . . . . . . . . . . . . Highest Temperature 426 | . . 18 30 . . 61 306 207 426 27 1 6 . . . . . . 180 305 Average Temperature 79 | . . 10 18 . . 28 97 66 65 14 1 6 . . . . . . 77 96 Received Heat Transfer 1140 | . . 36 75 . . 105 495 66 33 . . 9 168 . . 27 18 108 . . Effects 4 | . . . . . . . 3 . 1 . . . . . . . . . . . Shutdowns 1 | . . . . . . . . . 1 . . . . . . . . . . . Interference 3 | . . . . . . . 3 . . . . . . . . . . . . . Siege Activations . | . . . . . . . . . . . . . . . . . . . . . Robots Corrupted 4 | . . . . . . . . . . . . . . . . . . . 1 3 Combat Hostiles 2 | . . . . . . . . . . . . . . . . . . . . 2 Parts Fried 10 | . . . . . . . . . . . . . . . . . . . 5 5 Impact Corruptions . | . . . . . . . . . . . . . . . . . . . . . Robots Melted 5 | . . . . . . . 1 . . . . . . . . . . . . 4 Combat Hostiles 3 | . . . . . . . 1 . . . . . . . . . . . . 2 Parts Melted 21 | . . . 1 . . . 6 3 . . . . . . . . . . . 11 Heat Transferred 7141 | . . . 296 111 . 148 3108 962 . . . . . . . . . . . 2516 Parts Sabotaged . | . . . . . . . . . . . . . . . . . . . . . Parts Stolen . | . . . . . . . . . . . . . . . . . . . . . Parts Stripped . | . . . . . . . . . . . . . . . . . . . . . Power Chain Reactions . | . . . . . . . . . . . . . . . . . . . . . Alert | -11 -10 -10 -9 -9 -9 -8 -8 -7 -6 -5 -5 -4 -4 -4 -4 -3 -3 -2 -1 -1 ------- Run | Yrd Mat Min Mat Min Exi Min Mat Fac Fac Fac DSF Fac Upp Upp Zhi Pro Res Res Acc Com Peak Influence 342 | . 132 51 342 163 . 61 247 216 211 102 71 61 . . . . 86 87 107 336 Initial 133 | . . 51 19 133 . . . 53 105 102 71 37 . . . . . 7 33 68 Average 104 | . 96 51 123 95 . 42 109 114 82 102 71 42 . . . . 43 40 63 218 Maximum Alert Level 1 | . . . 1 . . . 1 1 1 . . . . . . . . . . 1 Low Security (%) 83 | 100 100 100 77 100 . 100 83 92 94 100 100 100 . . . . 100 100 100 36 Level 1 16 | . . . 22 . . . 16 7 5 . . . . . . . . . . 63 Level 2 . | . . . . . . . . . . . . . . . . . . . . . Level 3 . | . . . . . . . . . . . . . . . . . . . . . Level 4 . | . . . . . . . . . . . . . . . . . . . . . Level 5 . | . . . . . . . . . . . . . . . . . . . . . High Security . | . . . . . . . . . . . . . . . . . . . . . Max Security . | . . . . . . . . . . . . . . . . . . . . . Squads Dispatched 16 | . . . 1 . . . 2 2 3 . . 1 . . . . 1 1 . 5 Investigation 5 | . . . . . . . 1 . 1 . . . . . . . 1 . . 2 Extermination 5 | . . . . . . . . 1 1 . . . . . . . . . . 3 Reinforcement 6 | . . . 1 . . . 1 1 1 . . 1 . . . . . 1 . . Assault . | . . . . . . . . . . . . . . . . . . . . . Garrison . | . . . . . . . . . . . . . . . . . . . . . Intercept . | . . . . . . . . . . . . . . . . . . . . . Searches Triggered . | . . . . . . . . . . . . . . . . . . . . . Construction Impeded . | . . . . . . . . . . . . . . . . . . . . . Haulers Reinforced 2 | . . . . . . . . . 1 . . 1 . . . . . . . . Active Scanning Responses . | . . . . . . . . . . . . . . . . . . . . . Cargo Convoy Interrupts . | . . . . . . . . . . . . . . . . . . . . . Stealth | -11 -10 -10 -9 -9 -9 -8 -8 -7 -6 -5 -5 -4 -4 -4 -4 -3 -3 -2 -1 -1 --------- Run | Yrd Mat Min Mat Min Exi Min Mat Fac Fac Fac DSF Fac Upp Upp Zhi Pro Res Res Acc Com Distress Signals 5 | . 1 . 1 . . . . . 1 . . . . . . . . 1 . 1 Communications Jammed 35 | . . . . . . . . . . . . . . . . . . 31 . 4 Distress Signals 35 | . . . . . . . . . . . . . . . . . . 31 . 4 Times Spotted 168 | . 5 2 11 18 . 3 26 8 10 . 1 6 18 . . 5 5 16 3 31 Peak Tracking Total 15 | . 3 2 5 14 . 3 5 3 6 . 1 7 7 . . 3 2 14 1 15 Tactical Retreats 9 | . 1 . . . . . 1 1 . . . . 2 . . 3 . . . 1 Traps | -11 -10 -10 -9 -9 -9 -8 -8 -7 -6 -5 -5 -4 -4 -4 -4 -3 -3 -2 -1 -1 ------- Run | Yrd Mat Min Mat Min Exi Min Mat Fac Fac Fac DSF Fac Upp Upp Zhi Pro Res Res Acc Com Traps Triggered 11 | . . . . . . . 1 1 . . . . . . . . . 3 . 6 Indirectly . | . . . . . . . . . . . . . . . . . . . . . Trap Hack Attempts . | . . . . . . . . . . . . . . . . . . . . . Triggered . | . . . . . . . . . . . . . . . . . . . . . Disarmed . | . . . . . . . . . . . . . . . . . . . . . Reprogrammed . | . . . . . . . . . . . . . . . . . . . . . Reused . | . . . . . . . . . . . . . . . . . . . . . Traps Extracted . | . . . . . . . . . . . . . . . . . . . . . Installed . | . . . . . . . . . . . . . . . . . . . . . Triggered 2 | . . . . . . . . . . . . . . . . 2 . . . . Machines | -11 -10 -10 -9 -9 -9 -8 -8 -7 -6 -5 -5 -4 -4 -4 -4 -3 -3 -2 -1 -1 ---------- Run | Yrd Mat Min Mat Min Exi Min Mat Fac Fac Fac DSF Fac Upp Upp Zhi Pro Res Res Acc Com Machines Disabled 2 | . . . . . . . . . . . . . . . . . . . . 2 Max in Single Turn 1 | . . . . . . . . . . . . . . . . . . . . 1 Garrison Access 4 | . . . . . . . . . 1 . . . . . . . . 2 1 . Machines Repaired . | . . . . . . . . . . . . . . . . . . . . . Machines Dismantled . | . . . . . . . . . . . . . . . . . . . . . Machines Sabotaged . | . . . . . . . . . . . . . . . . . . . . . Overloaded Fab Kills . | . . . . . . . . . . . . . . . . . . . . . Hacking | -11 -10 -10 -9 -9 -9 -8 -8 -7 -6 -5 -5 -4 -4 -4 -4 -3 -3 -2 -1 -1 --------- Run | Yrd Mat Min Mat Min Exi Min Mat Fac Fac Fac DSF Fac Upp Upp Zhi Pro Res Res Acc Com Machines Accessed 55 | . 3 . 1 . 2 . 4 2 9 1 . 1 1 1 4 . 7 8 4 7 Terminals 34 | . 3 . 1 . . . 2 2 6 1 . 1 . . . . 4 5 3 6 Fabricators 1 | . . . . . . . . . . . . . . . . . 1 . . . Repair Stations 4 | . . . . . . . 1 . 1 . . . . . . . 1 . . 1 Recycling Units 2 | . . . . . . . 1 . . . . . . . . . . 1 . . Scanalyzers 2 | . . . . . . . . . 1 . . . . . . . 1 . . . Garrison Access 4 | . . . . . . . . . 1 . . . . . . . . 2 1 . Total Hacks 181 | . 7 . 2 . 2 . 11 2 25 1 . 2 1 7 17 . 40 47 4 13 Successful 98 | . 3 . 1 . 2 . 5 . 6 1 . . 1 7 17 . 17 29 4 5 Failed 83 | . 4 . 1 . . . 6 2 19 . . 2 . . . . 23 18 . 8 Catastrophic 27 | . . . . . . . . 1 5 . . 1 . . . . 11 4 . 5 Database Lockouts . | . . . . . . . . . . . . . . . . . . . . . Manual 69 | . 2 . 2 . 1 . 3 1 3 . . 2 . . . . 17 29 . 9 Terminals 110 | . 7 . 2 . . . 7 2 16 1 . 2 . . . . 19 39 3 12 Fabricators 4 | . . . . . . . . . . . . . . . . . 4 . . . Repair Stations 15 | . . . . . . . 2 . 4 . . . . . . . 8 . . 1 Recycling Units 8 | . . . . . . . 2 . . . . . . . . . . 6 . . Scanalyzers 12 | . . . . . . . . . 3 . . . . . . . 9 . . . Garrison Access 5 | . . . . . . . . . 2 . . . . . . . . 2 1 . Terminal Hacks 63 | . 3 . . . 2 . 2 . 2 1 . . 1 7 17 . 4 20 3 1 Record 23 | . . . . . 1 . . . . . . . . 7 5 . . 9 . 1 Part Schematic 7 | . . . . . . . . . . . . . . . 4 . 1 2 . . Robot Analysis 7 | . 1 . . . . . 1 . . . . . . . 4 . . 1 . . Prototype ID Bank 4 | . . . . . . . . . . . . . . . 4 . . . . . Open Door 5 | . . . . . . . . . . . . . 1 . . . . 1 3 . Open DSF 1 | . . . . . . . . . . 1 . . . . . . . . . . Level Access Points 2 | . . . . . . . . . . . . . . . . . 1 1 . . Branch Access Points 3 | . 1 . . . . . . . . . . . . . . . 1 1 . . Emergency Access Points 1 | . . . . . . . 1 . . . . . . . . . . . . . Terminal Index 2 | . . . . . . . . . 1 . . . . . . . . 1 . . Fabricator Index 1 | . . . . . . . . . . . . . . . . . . 1 . . Unreport Threat 4 | . . . . . . . . . 1 . . . . . . . . 3 . . Locate Traps 1 | . 1 . . . . . . . . . . . . . . . . . . . Recall Investigation 1 | . . . . . . . . . . . . . . . . . 1 . . . Derelict Proto ID Bank 1 | . . . . . 1 . . . . . . . . . . . . . . . Fabricator Hacks 1 | . . . . . . . . . . . . . . . . . 1 . . . Build 1 | . . . . . . . . . . . . . . . . . 1 . . . Repair Station Hacks 8 | . . . . . . . 2 . 2 . . . . . . . 4 . . . Scan Component 5 | . . . . . . . 1 . 1 . . . . . . . 3 . . . Repair 3 | . . . . . . . 1 . 1 . . . . . . . 1 . . . Recycling Unit Hacks 1 | . . . . . . . 1 . . . . . . . . . . . . . Retrieve Components 1 | . . . . . . . 1 . . . . . . . . . . . . . Scanalyzer 8 | . . . . . . . . . 1 . . . . . . . 7 . . . Insert Component 5 | . . . . . . . . . 1 . . . . . . . 4 . . . Analyze 3 | . . . . . . . . . . . . . . . . . 3 . . . Garrison Access Hacks 4 | . . . . . . . . . 1 . . . . . . . . 2 1 . Seal Access 4 | . . . . . . . . . 1 . . . . . . . . 2 1 . Unauthorized Hacks 13 | . . . 1 . . . . . . . . . . . . . 1 7 . 4 Terminals 9 | . . . 1 . . . . . . . . . . . . . 1 3 . 4 Assimilate 3 | . . . . . . . . . . . . . . . . . 1 . . 2 Botnet 5 | . . . 1 . . . . . . . . . . . . . . 3 . 1 Disrupt 1 | . . . . . . . . . . . . . . . . . . . . 1 Fabricators . | . . . . . . . . . . . . . . . . . . . . . Repair Stations . | . . . . . . . . . . . . . . . . . . . . . Recycling Units 4 | . . . . . . . . . . . . . . . . . . 4 . . Monitor 1 | . . . . . . . . . . . . . . . . . . 1 . . Reject 1 | . . . . . . . . . . . . . . . . . . 1 . . Recyclers 1 | . . . . . . . . . . . . . . . . . . 1 . . Mask 1 | . . . . . . . . . . . . . . . . . . 1 . . Scanalyzers . | . . . . . . . . . . . . . . . . . . . . . Garrison Access . | . . . . . . . . . . . . . . . . . . . . . Data Cores Recovered . | . . . . . . . . . . . . . . . . . . . . . Used . | . . . . . . . . . . . . . . . . . . . . . Hacking Detections 35 | . 3 . 1 . . . 3 2 7 . . 1 . . . . 7 5 . 6 Full Trace Events 5 | . . . . . . . 1 . 1 . . . . . . . 1 . . 2 Feedback Events 2 | . . . . . . . . . . . . . . . . . . . . 2 Corruption 1 | . . . . . . . . . . . . . . . . . . . . 1 Hackware Fried 1 | . . . . . . . . . . . . . . . . . . . . 1 Feedback Blocked 1 | . . . . . . . . . . . . . . . . . . . . 1 Robot Schematics Acquired . | . . . . . . . . . . . . . . . . . . . . . Robots Built . | . . . . . . . . . . . . . . . . . . . . . Authchips . | . . . . . . . . . . . . . . . . . . . . . Time . | . . . . . . . . . . . . . . . . . . . . . Total Robot Build Rating . | . . . . . . . . . . . . . . . . . . . . . Part Schematics Acquired 10 | . . . . . . . . . . . . . . . 4 . 4 2 . . Parts Built 2 | . . . . . . . . . . . . . . . . . 2 . . . Authchips . | . . . . . . . . . . . . . . . . . . . . . Time 46 | . . . . . . . . . . . . . . . . . 46 . . . Total Part Build Rating 18 | . . . . . . . . . . . . . . . . . 18 . . . Parts Repaired 3 | . . . . . . . 1 . 1 . . . . . . . 1 . . . Time 110 | . . . . . . . 38 . 53 . . . . . . . 19 . . . Parts Recycled . | . . . . . . . . . . . . . . . . . . . . . Recycled Matter . | . . . . . . . . . . . . . . . . . . . . . Retrieved Matter . | . . . . . . . . . . . . . . . . . . . . . Retrieved Components 7 | . . . . . . . 7 . . . . . . . . . . . . . Parts Scanalyzed 4 | . . . . . . . . . 1 . . . . . . . 3 . . . Part Schematics Acquired 3 | . . . . . . . . . . . . . . . . . 3 . . . Parts Damaged 1 | . . . . . . . . . 1 . . . . . . . . . . . Bothacking | -11 -10 -10 -9 -9 -9 -8 -8 -7 -6 -5 -5 -4 -4 -4 -4 -3 -3 -2 -1 -1 ------------ Run | Yrd Mat Min Mat Min Exi Min Mat Fac Fac Fac DSF Fac Upp Upp Zhi Pro Res Res Acc Com Used RIF Installer . | . . . . . . . . . . . . . . . . . . . . . Robots Hacked . | . . . . . . . . . . . . . . . . . . . . . Non-combat . | . . . . . . . . . . . . . . . . . . . . . Combat . | . . . . . . . . . . . . . . . . . . . . . Robot Hacks Applied . | . . . . . . . . . . . . . . . . . . . . . Relay Couplers Released . | . . . . . . . . . . . . . . . . . . . . . Fabnet Peak Effective % . | . . . . . . . . . . . . . . . . . . . . . Robots Rewired 1 | . . . . . . . . . . . . . . . . . . . . 1 Allies Hacked 1 | . . . . . . . . . . . . . . . . . . . . 1 Hacks Repelled . | . . . . . . . . . . . . . . . . . . . . . Allies | -11 -10 -10 -9 -9 -9 -8 -8 -7 -6 -5 -5 -4 -4 -4 -4 -3 -3 -2 -1 -1 -------- Run | Yrd Mat Min Mat Min Exi Min Mat Fac Fac Fac DSF Fac Upp Upp Zhi Pro Res Res Acc Com Total Allies 6 | . . 3 . . . . . . . . . . . . . . 1 . . 2 Largest Group 3 | . . 3 3 2 . . . . . . . . . . . . 1 1 . 1 Highest-Rated Group 69 | . . 40 40 32 . . . . . . . . . . . . 26 26 . 69 Highest-Rated Ally 69 | . . 16 16 16 . . . . . . . . . . . . 26 26 . 69 Total Orders 1 | . . . . . . . . . . . . . . . . . . . . 1 STAY 1 | . . . . . . . . . . . . . . . . . . . . 1 Ally Attacks 34 | . . . 29 1 . . . . . . . . . . . . . . . 4 Total Damage 424 | . . . 309 15 . . . . . . . . . . . . . . . 100 Kills 6 | . . . 6 . . . . . . . . . . . . . . . . . Allies Corrupted . | . . . . . . . . . . . . . . . . . . . . . Allies Melted . | . . . . . . . . . . . . . . . . . . . . . Intel | -11 -10 -10 -9 -9 -9 -8 -8 -7 -6 -5 -5 -4 -4 -4 -4 -3 -3 -2 -1 -1 ------- Run | Yrd Mat Min Mat Min Exi Min Mat Fac Fac Fac DSF Fac Upp Upp Zhi Pro Res Res Acc Com Robot Analysis Total 7 | . 1 . . . . . 1 . . . . . . . 4 . . 1 . . Derelict Logs Recovered 6 | . . 3 . . . . . . . . . . 2 1 . . . . . . Drone Launches . | . . . . . . . . . . . . . . . . . . . . . Drone Recoveries . | . . . . . . . . . . . . . . . . . . . . . Exploration | -11 -10 -10 -9 -9 -9 -8 -8 -7 -6 -5 -5 -4 -4 -4 -4 -3 -3 -2 -1 -1 ------------- Run | Yrd Mat Min Mat Min Exi Min Mat Fac Fac Fac DSF Fac Upp Upp Zhi Pro Res Res Acc Com Turns Passed 7494 | 81 318 278 281 526 357 556 1228 306 355 13 37 55 243 103 82 643 422 377 174 1059 Spaces Moved 8173 | 45 175 159 130 291 223 403 455 238 934 57 107 84 489 428 170 411 720 754 413 1487 Core 13 | 5 . . . . . . . . . . . . . . . . . . . 8 Treads 1460 | 39 175 159 130 291 223 . 334 88 . . . . . . . . . . . 21 Legs 1 | 1 . . . . . . . . . . . . . . . . . . . . Wheels 524 | . . . . . . 403 121 . . . . . . . . . . . . . Hover 1359 | . . . . . . . . . . . . . . . 100 411 720 128 . . Flight 4816 | . . . . . . . . 150 934 57 107 84 489 428 70 . . 626 413 1458 Fastest Speed 17 | 50 160 160 160 160 160 130 95 23 20 20 17 20 20 23 23 42 36 36 33 27 Average Speed 60 | 146 160 160 175 160 160 130 150 75 20 20 19 20 28 23 34 42 36 36 33 32 Slowest Speed 285 | 160 160 160 240 160 160 130 240 161 24 20 20 20 32 23 100 42 42 285 33 160 Overloaded Moves 13 | . . . . . . . . . . . 13 . . . . . . . . . Propulsion Burnouts . | . . . . . . . . . . . . . . . . . . . . . Robots Hopped 35 | . . . . . . . . 1 8 . . . 1 . . . . 10 . 15 Cave-ins Triggered . | . . . . . . . . . . . . . . . . . . . . . Exploration Rate (%) 37 | 4 40 37 18 70 61 76 39 8 28 4 80 3 58 61 63 58 14 25 9 33 Regions Visited 20 Branch Regions 9 Pre-discovered Areas 5 | . . . . . 1 . . . . . . . . 1 3 . . . . . Known Exits Taken 6 | . 1 . . . . 1 . . . 1 . . . . . 1 1 1 . . Unknown Exits Taken 13 | 1 . 1 1 1 1 . 1 1 1 . . 1 1 1 1 . . . 1 . Scrap Searched 14 | . . 1 . 1 . 1 . . . . . . 3 3 . 5 . . . . Spaces Dug 58 | . . . . . . . . 4 12 . . 1 9 . . 12 4 7 . 9 Terrain Destroyed 174 | . . . . 50 . 19 28 4 12 . . 1 21 . . 12 4 7 . 16 Melee 40 | . . . . . . . . 4 12 . . 1 . . . 12 4 7 . . Projectile 16 | . . . . . . . . . . . . . . . . . . . . 16 AOE 118 | . . . . 50 . 19 28 . . . . . 21 . . . . . . . Terrain Rammed . | . . . . . . . . . . . . . . . . . . . . . Walls Destroyed . | . . . . . . . . . . . . . . . . . . . . . Machines Disabled . | . . . . . . . . . . . . . . . . . . . . . Actions | -11 -10 -10 -9 -9 -9 -8 -8 -7 -6 -5 -5 -4 -4 -4 -4 -3 -3 -2 -1 -1 --------- Run | Yrd Mat Min Mat Min Exi Min Mat Fac Fac Fac DSF Fac Upp Upp Zhi Pro Res Res Acc Com Total 10147 | 59 198 175 169 319 223 422 876 329 1049 57 121 100 543 431 192 856 853 810 436 1929 Wait 1294 | . . . 4 1 . . 301 33 71 . 9 . 19 . . 429 101 28 5 293 Move 8084 | 44 174 158 129 290 222 402 454 235 917 56 106 83 486 427 169 410 719 735 412 1456 Hop 34 | . . . . . . . . 1 8 . . . 1 . . . . 9 . 15 Pick Up 81 | 9 2 8 7 1 1 6 15 6 5 . 3 . 2 2 3 . 3 2 1 5 Fast Attach 87 | 3 2 1 5 . . . 12 5 6 . 1 2 5 1 9 3 8 6 4 14 Attach 42 | 2 1 . . 6 . 3 7 3 1 1 . . 4 . . . 1 1 2 10 Detach 11 | 1 . . . . . . 1 . . . . . 1 . . . 1 2 . 5 Swap 36 | . . 1 3 3 . 3 5 7 5 . 1 . . . 1 . 2 1 1 3 Drop 100 | . 1 2 10 . . 1 13 19 10 . 1 2 2 1 10 2 7 8 . 11 Fire 236 | . 18 5 9 18 . 7 68 15 . . . . 2 . . . . . 11 83 Melee 106 | . . . . . . . . 5 26 . . 13 21 . . 12 11 18 . . Ram . | . . . . . . . . . . . . . . . . . . . . . Kick . | . . . . . . . . . . . . . . . . . . . . . Crush 2 | . . . 2 . . . . . . . . . . . . . . . . . Escape Stasis 33 | . . . . . . . . . . . . . . . . . . . . 33 Rewire 1 | . . . . . . . . . . . . . . . . . . . . 1 Trap . | . . . . . . . . . . . . . . . . . . . . . Miscellaneous . | . . . . . . . . . . . . . . . . . . . . . Route ------- -11/Scrapyard -10/Materials (discovered 3 exits: *Mat x2 / *Min) -10/Mines -9/Materials (discovered 3 exits: Mat / [*Min] / Sto) -9/Mines -9/Exiles -8/Mines -8/Materials -7/Factory -6/Factory -5/Factory (discovered 2 exits: [*Upp] / DSF) -5/DSF -4/Factory -4/Upper Caves -4/Upper Caves (discovered 2 exits: *Res / *Zhi) -4/Zhirov -3/Proximity Caves -3/Research (discovered 5 exits: *Res x3 / Tes x2) -2/Research (discovered 5 exits: *Acc x3 / *Qua x2) -1/Access -1/Command To Epsilon Eridani History --------- Turn | Location | Event 2 | -11/Scrapyard | Met Revision 17 30 | -11/Scrapyard | Discovered new exit (range 16) 82 | -11/Scrapyard | Entered Materials 197 | -10/Materials | Discovered new exit (range 15) 242 | -10/Materials | Discovered new exit (range 15) 269 | -10/Materials | Identified exit to Mines 303 | -10/Materials | Build established: Mutant 400 | -10/Materials | Entered Mines 410 | -10/Mines | Met a Derelict bent on vengeance 444 | -10/Mines | Joined a pair of Derelicts in attacking an 0b10 outpost 533 | -10/Mines | Learned 4 Materials zone layouts 567 | -10/Mines | Received a Rocket Launcher from a helpful Derelict 624 | -10/Mines | Learned Materials emergency access door positions 662 | -10/Mines | Discovered new exit (range 5) 670 | -10/Mines | Assisted by bots powering up and referring to "LRC-V3" 678 | -10/Mines | Entered Materials 678 | -9/Materials | Accompanied by 3 allies 678 | -9/Materials | Evolved 2 slots: Utility x2 679 | -9/Materials | Identified exit to Storage 680 | -9/Materials | Identified exit to Materials 944 | -9/Materials | Discovered new exit (range 6) 959 | -9/Materials | Entered Mines 959 | -9/Mines | Accompanied by 2 allies 1044 | -9/Mines | Assembled infested the area 1081 | -9/Mines | Core integrity fell below 50% 1094 | -9/Mines | Destroyed 12 combat bots 1129 | -9/Mines | Lost 6 parts (1n2u3w) 1347 | -9/Mines | Build established: Scavenger-Mutant 1479 | -9/Mines | Discovered new exit (range 5) 1485 | -9/Mines | Entered Exiles 1524 | -9/Exiles | Met 8R-AWN 1551 | -9/Exiles | Met EX-HEX 1601 | -9/Exiles | Met EX-BIN 1620 | -9/Exiles | Aligned with FarCom system 1621 | -9/Exiles | Given EX-Vault access code 1661 | -9/Exiles | Opened EX-Vault 1674 | -9/Exiles | Found Modified TNC 1709 | -9/Exiles | Warned to stay clear of 0b10 Research branches 1754 | -9/Exiles | Met EX-DEC 1763 | -9/Exiles | Learned location of Zion (-7) 1822 | -9/Exiles | Discovered new exit (range 14) 1842 | -9/Exiles | Left Exiles lab with Modified TNC 1842 | -9/Exiles | Entered Mines 1851 | -8/Mines | Core integrity fell below 20% 1881 | -8/Mines | Lost 3 parts (2n1u) 2153 | -8/Mines | Build established: Mutant 2324 | -8/Mines | Discovered exit to Materials (range 5) 2398 | -8/Mines | Entered Materials 2398 | -8/Materials | Evolved 2 slots: Propulsion x2 2631 | -8/Materials | Lost 7 parts (1p1n1u4w) 2939 | -8/Materials | Lost 3 parts (3n) 3161 | -8/Materials | Repaired Hvy. Armor Plating 3597 | -8/Materials | Discovered new exit (range 16) 3626 | -8/Materials | Entered Factory 3626 | -7/Factory | Evolved 2 slots: Propulsion x1, Utility x1 3907 | -7/Factory | Discovered new exit (range 16) 3932 | -7/Factory | Entered another Factory area 3932 | -6/Factory | Evolved 2 slots: Propulsion x1, Utility x1 4023 | -6/Factory | Repaired Broken Surge Thruster 4286 | -6/Factory | Discovered new exit (range 7) 4287 | -6/Factory | Entered another Factory area 4287 | -5/Factory | Evolved 2 slots: Utility x2 4292 | -5/Factory | Discovered new exit (range 22) 4300 | -5/Factory | Identified exit to DSF 4300 | -5/Factory | Entered DSF 4322 | -5/DSF | Build established: Hacker-Scout 4334 | -5/DSF | Discovered new exit (range 14) 4337 | -5/DSF | Entered Factory 4337 | -4/Factory | Evolved 2 slots: Utility x2 4377 | -4/Factory | Found Prototype Slashing Weapon 4377 | -4/Factory | Identified Centrium Greatsword 4379 | -4/Factory | Found Prototype Hackware 4379 | -4/Factory | Identified Exp. System Shield 4381 | -4/Factory | Discovered new exit (range 13) 4392 | -4/Factory | Entered Upper Caves 4470 | -4/Upper Caves | Lost 5 parts (1p2n2u) 4503 | -4/Upper Caves | Learned Research trap positions 4527 | -4/Upper Caves | Discovered new exit (range 16) 4555 | -4/Upper Caves | Learned Research machine intel 4589 | -4/Upper Caves | Attracted the attention of an 0b10 base 4635 | -4/Upper Caves | Entered another Upper Caves area 4644 | -4/Upper Caves | Discovered new exit (range 17) 4703 | -4/Upper Caves | Discovered new exit (range 6) 4713 | -4/Upper Caves | Learned Research emergency access door positions 4713 | -4/Upper Caves | Learned Armory security intel 4713 | -4/Upper Caves | Learned Factory terminal intel 4719 | -4/Upper Caves | Learned location of Quarantine (-2) 4738 | -4/Upper Caves | Entered Zhirov 4738 | -4/Zhirov | Discovered new exit (range 3) 4748 | -4/Zhirov | Found Alien Artifact 4748 | -4/Zhirov | Identified Integrated Dissipator 4748 | -4/Zhirov | Installed Integrated Dissipator, increased core heat dissipation (+20) 4791 | -4/Zhirov | Learned location of Testing (-3) 4791 | -4/Zhirov | Learned location of Command (-1) 4804 | -4/Zhirov | Found Alien Artifact 4820 | -4/Zhirov | Entered Proximity Caves 4821 | -3/Proximity Caves | Identified exit to Research 5024 | -3/Proximity Caves | Received a Behemoth hack from an annoying Tinkerer 5054 | -3/Proximity Caves | Build established: Wizard-Mutant 5288 | -3/Proximity Caves | Spotted B-86 Titan 5463 | -3/Proximity Caves | Entered Research 5463 | -3/Research | Evolved 2 slots: Power x1, Propulsion x1 5464 | -3/Research | Loaded intel: 72 trap records 5466 | -3/Research | Loaded intel: 128 machine locations 5512 | -3/Research | Fabricated Cmb. Linear Gravjet (x2) 5663 | -3/Research | Repaired Imp. Propulsion Shielding 5827 | -3/Research | Identified exit to Research 5827 | -3/Research | Identified exit to Testing 5872 | -3/Research | Identified Transdimensional Reconstructor 5885 | -3/Research | Entered another Research area 5885 | -2/Research | Accompanied by 1 ally 5885 | -2/Research | Evolved 2 slots: Propulsion x1, Utility x1 6044 | -2/Research | Identified exit to Quarantine 6044 | -2/Research | Identified exit to Access 6236 | -2/Research | Spotted B-90 Cyclops 6251 | -2/Research | Spotted B-90 Cyclops 6262 | -2/Research | Entered Access 6262 | -1/Access | Evolved 2 slots: Propulsion x2 6287 | -1/Access | Lost 5 parts (1p3u1w) 6434 | -1/Access | Discovered new exit (range 7) 6436 | -1/Access | Entered Command 6571 | -1/Command | Build established: Hacker-Sprinter 6698 | -1/Command | Lost 3 parts (3u) 6775 | -1/Command | Adv. Hacking Suite fried by hacking feedback 6859 | -1/Command | Spotted Alpha 7 6859 | -1/Command | Spotted Striker 6859 | -1/Command | Spotted Executioner 6859 | -1/Command | Spotted Executioner 6859 | -1/Command | Spotted Alpha 7 6859 | -1/Command | Spotted Striker 6859 | -1/Command | Spotted Executioner 6859 | -1/Command | Spotted Executioner 6897 | -1/Command | Destroyed Executioner 7066 | -1/Command | Build established: Sprinter 7084 | -1/Command | Destroyed Striker 7115 | -1/Command | Lost 7 parts (1p3n3u) 7309 | -1/Command | Destroyed Executioner 7454 | -1/Command | Spotted B-99 Colossus 7468 | -1/Command | Spotted B-99 Colossus 7488 | -1/Command | Spotted B-99 Colossus 7491 | -1/Command | Discovered new exit (range 7) 7492 | -1/Command | Core integrity fell below 50% 7492 | -1/Command | System corruption reached 10% 7495 | *** | Escaped! Last Messages --------------- 07490_ Slug penetrates Access Shell. 07491_ Stasis field depleted. 07491_ Slug penetrates Access Shell. 07491_ The Access Shell folds into the floor. 07491_ EXIT=FOUND 07491_ Knocked back. 07491_ Penetrated by Slug. 07491_ Slug penetrates Wall. 07491_ Penetrated by Slug. 07491_ Slug penetrates Wall. 07491_ Sml. Battery destroyed. 07492_ Knocked back. 07492_ Slug penetrates Wall. 07492_ Slug penetrates Reinforced Barrier. 07492_ Slug penetrates Wall. 07493_ P-80 Master resets Striker, system corruption cleaned. 07493_ R-10 Processor collects Enh. Quantum Rifle. 07494_ Penetrated by Slug. Map ----- +----------------------------------------------------+ | !! #??# "" #"T #????????????????? | | +??# "" #"" #????????????????? | | #??# "Y #"" ######???????????? | | #??# "" #"" # ???????????? | | #??# "" + # #########???? | | #??# # # """" #???? | | #??# # % # ""R"" #???? | | #?## ######## ### ### # "" "" #???? | | #######+##### ###????##///7 ### # # #???? | | # ! #????#hhp E #??# #% % ##### | | # #???##^ Rpp##??## # + | | # #???# ^h^*[#???#!# ##### | | # #???## ##???#=# %%% #???? | | # "" "" #???# !! #???#%## #+ ###???? | | # """" """" #???## ^ ^ ##???#!#####% ####### | | # """" """" #???# ^ =#???#[= % | | # "" "" #???## ##???# ! | | #= #???# ^ %E##??# %%= | | # #?###; % ^!;;##?# [ | | ####+#####+######?#BB BB#?# ! | | ######?#BB BB#?# ! | | #### # ### ^^ #?# | | ???# # ## #?##### | | ???# # ### K #?????# # ### | | #### # #?# "" #?????####### | | + #?# "@ #???????????# | | # #?# #???????????# "" | | ### # #?# #???????????# " "" | | #?# # ### #???????????# "" " | | ###+##+## ## #???????????# "" | | # ### #???????????# | | # ################???????????# | | # "" #?????????????????????????####### | | # """ ##???????????????????????????????? | | = + T" #####????????????????????????????? | | %! # """ #????????????????????????????? | | ### # ""g= #####????????????????????????????? | | ??# # / g|==#????????????????????????????????? | | ??# # !![%#????????????????????????????????? | | ### #######+ #????????????????????????????????? | | #?????#%##????????????????????????????????? | | ####+#########!#?????????????????????????????????? | | + *#?????????????????????????????????? | | *######?????????????????????????????????? | | """ #??????????????????????????????????????? | | ""T"" #??????????????????????????????????????? | | "" !" #??????????????????????????????????????? | | =% #??????????????????????????????????????? | | = #??????????????????????????????????????? | | ###########??????????????????????????????????????? | +----------------------------------------------------+ Best States ------------- Heat Dissipation 72 Coolant Potential 100 Energy Generation 69 Energy Capacity 540 Matter Stores 300 Matter Capacity 300 Sight Range 22 Robot Scan Range 16 Terrain Scan Density 10 ECM Strength 2 Jamming Range 14 Power Amplification 90 Armor Coverage 375 Core Shielding 20 Propulsion Shielding 66 Utility Shielding 66 Weapon Shielding 90 Point Defense Rating 160 Evasion (%) 66 Targeting Accuracy 6 Melee Accuracy 6 Core Analysis 6 Recoil Reduction 4 Offensive Hacking 24 Defensive Hacking 50 Authchip Count 2 Item Schematics ----------------- Assault Drone Bay | -4/Zhirov | Free Exp. Heat Sink | -4/Zhirov | Free Exp. Optical Array | -4/Zhirov | Free Imp. Arc Thrower | -4/Zhirov | Free Cld. Gravmag System | -3/Research | Hacked Imp. Propulsion Shielding | -3/Research | Scanalyzed Adv. Power Amplifier | -3/Research | Scanalyzed Cmb. Linear Gravjet | -3/Research | Scanalyzed Biometal Heavy Treads | -2/Research | Hacked Cld. Q-thruster | -2/Research | Hacked Robot Schematics ------------------ None Fabricated ------------ Cmb. Linear Gravjet | x2 | -3/Research | Preloaded Alien Tech Used ----------------- Integrated Dissipator Achievements -------------- None Challenges ------------ None Game ------ Seed CoolantAngularSheargun Manual? 0 Play Time 01:34:33 Cumulative 301.1 hours Start 2024.05.01 @ 00:38:15 End 2024.05.01 @ 02:29:16 Sessions 1 Manual Loads 0 Difficulty Rogue Special Mode None Game No. 223 Rogue 223 Adventurer 0 Explorer 0 Win Type 0 Total 12 Types 8/0/3/1/0/0/0/0/0 Lore% 79 Gallery% 85 Achievement% 72 Wizard Run 0 Options --------- Layout 2 ASCII 1 Keyboard 0 Movement Mouse Keybinds 0 Fullscreen 2 Font 24/Smallcaps Map View 50x44 Zoom Use 0% Tactical HUD 1 Map Filters NONE Filters NONE Steam 1 RUN: 13dc129e-e348-47a8-b65d-a7ecfb0a4897